Cogmind - Beta 9.6 @@@ ROGUE MODE // 2020.08.09 @ 15:02:35 Player: Plexion Result: Destroyed by Enhanced Grunt with Neutron Cannon Performance ------------- Evolutions (3) 1500 Regions Visited (11) 2200 Robots Destroyed (72) 360 Value Destroyed (1976) 1976 Prototype IDs (236) 4720 Alien Tech Used (0) 0 Bonus (3666) 3666 TOTAL SCORE: 14422 Bonus ------- Follower Combat Kills 66 Aligned with FarCom 300 Met Data Miner 300 Used Data Conduit 3000 Cogmind --------- Core Integrity 0/700 Matter 275/300 Energy 143/150 System Corruption 1% Temperature Cool (8) Movement Hovering (60) Location -7/Data Miner Parts ------- > --- POWER (1) -------- Light Angular Momentum Engine > --- PROPULSION (3) --- Gravmag Array > --- UTILITY (7) ------ Signal Interpreter Advanced Terrain Scan Processor Propulsion Shielding Hardened Medium Armor Plating > --- WEAPON (2) ------- Longsword +1 > --- INVENTORY (4) ---- Light Nuclear Core Ghost Barrier Quantum Router Remote Datajack Peak State ------------ > --- POWER ------------ Improved Deuterium Engine > --- PROPULSION ------- Wheel Armored Huge Wheel > --- UTILITY ---------- High-capacity Storage Unit High-capacity Storage Unit Signal Interpreter Advanced Terrain Scanner Advanced Terrain Scan Processor Hardened Heavy Armor Plating > --- WEAPON ----------- Precision Assault Rifle Longsword +1 > --- INVENTORY -------- Improved Ion Engine Light Nuclear Core Wheel High-capacity Storage Unit High-capacity Storage Unit High-capacity Storage Unit Compact Matter Pod Advanced Sensor Array Improved Power Shielding Heavy Armor Plating Heavy Armor Plating Hardened Medium Armor Plating Hardened Medium Armor Plating Heavy Laser Heavy Laser Light Assault Rifle Heavy Assault Rifle Heavy Assault Rifle [Rating: 48] Favorites ----------- Power Improved Ion Engine Engine Improved Ion Engine Power Core Light Nuclear Core Propulsion Wheel Leg Aluminum Leg Wheel Wheel Hover Unit Improved Hover Unit Utility High-capacity Storage Unit Device Advanced Terrain Scanner Storage High-capacity Storage Unit Processor Signal Interpreter Protection Heavy Armor Plating Weapon Longsword +1 Energy Gun EM Shotgun Ballistic Gun Light Assault Rifle Launcher Grenade Launcher Slashing Weapon Longsword +1 Build | -11 -10 -10 -9 -9 -9 -8 -8 -7 -7 -7 -7 ------- Run | Scr Mat Min Mat Min Exi Min Mat Fac Low Low Dat Slots Evolved 6 | . . . 2 . . . 2 2 . . . Power . | . . . . . . . . . . . . Propulsion 1 | . . . . . . . 1 . . . . Utility 5 | . . . 2 . . . 1 2 . . . Weapon . | . . . . . . . . . . . . Parts Attached 116 | 6 7 5 13 4 4 5 7 32 24 5 4 Power 13 | 1 1 . 2 . . 1 1 1 3 2 1 Engine 11 | 1 1 . 2 . . 1 1 1 3 . 1 Core 2 | . . . . . . . . . . 2 . Reactor . | . . . . . . . . . . . . Propulsion 18 | 2 . 1 1 1 . 3 2 4 2 1 1 Treads . | . . . . . . . . . . . . Leg 2 | . . 1 . . . . . . 1 . . Wheel 14 | 2 . . 1 1 . 3 2 4 1 . . Hover 2 | . . . . . . . . . . 1 1 Flight . | . . . . . . . . . . . . Utility 35 | 1 2 . 3 . 2 . 2 9 13 1 2 Device 8 | . . . 1 . . . . 2 4 . 1 Storage 9 | 1 2 . . . 2 . 1 1 2 . . Processor 4 | . . . 1 . . . . 3 . . . Hackware . | . . . . . . . . . . . . Protection 14 | . . . 1 . . . 1 3 7 1 1 Artifact . | . . . . . . . . . . . . Weapon 50 | 2 4 4 7 3 2 1 2 18 6 1 . Energy Gun 18 | 1 2 1 1 . 2 . 1 7 3 . . Energy Cannon . | . . . . . . . . . . . . Ballistic Gun 18 | 1 1 1 3 1 . 1 . 7 2 1 . Ballistic Cannon . | . . . . . . . . . . . . Launcher 8 | . 1 2 3 2 . . . . . . . Special Weapon . | . . . . . . . . . . . . Impact Weapon . | . . . . . . . . . . . . Slashing Weapon 6 | . . . . . . . 1 4 1 . . Piercing Weapon . | . . . . . . . . . . . . Special Melee Weapon . | . . . . . . . . . . . . Unidentified Prototypes 3 | . . . . . . . . 3 . . . Parts Lost 41 | . 3 1 6 3 . 2 . 1 14 4 7 Power 6 | . 1 . . . . 1 . . 2 1 1 Propulsion 8 | . . 1 1 1 . . . . 3 1 1 Utility 10 | . . . 1 . . . . . 4 1 4 Weapon 17 | . 2 . 4 2 . 1 . 1 5 1 1 Highest Loss Streak 8 | . 3 1 5 1 . 1 . 1 8 2 7 Average Slot Usage (%) 88 | . 99 100 93 97 88 99 90 88 75 82 81 Engine 7 | . 13 14 11 11 11 10 9 7 6 1 . Leg 1 | . . 10 9 . . . . . 3 . . Wheel 15 | . 28 17 11 21 22 22 27 20 4 . . Hover 1 | . . . . . . . . . . 6 7 Device 4 | . . . 5 . . . . 6 6 8 6 Storage 16 | . 27 28 22 22 22 22 18 15 11 7 6 Processor 11 | . . . 3 11 11 11 9 14 15 15 15 Protection 10 | . . . 11 11 11 11 9 7 11 20 22 Energy Gun 5 | . 17 11 5 . . 18 7 4 3 . . Ballistic Gun 6 | . 10 11 12 8 10 3 3 2 7 5 6 Launcher 1 | . . 4 1 11 . . . . . . . Slashing Weapon 3 | . . . . . . . 7 6 3 7 7 Naked Turns . | . . . . . . . . . . . . Heaviest Build 110 | 10 48 49 53 54 78 78 92 110 110 53 48 Greatest Support 38 | 32 32 32 28 28 28 28 32 38 38 10 36 Greatest Overweight (x) 31 | . 1 3 3 4 2 3 2 3 31 5 5 Average Overweight (x) 2 | . . 1 2 1 1 2 2 2 3 4 3 Largest Inventory Capacity 20 | 6 16 16 16 16 20 20 20 20 20 12 12 Average Capacity 16 | 5 15 16 16 16 16 20 20 20 16 12 11 Most Carried 20 | 4 11 13 14 15 18 20 20 20 20 10 12 Average Carried 14 | 2 9 11 12 14 14 17 19 19 12 9 9 Final Capacity 20 | 6 16 16 16 16 20 20 20 20 12 12 4 Final Carried 20 | 4 10 13 14 14 16 19 20 20 9 10 4 Class Distribution -------------------- 47% | Mutant 22% | Hauler-Mutant 22% | Hauler-Assassin 5% | Scavenger-Mutant Dominant Class ---------------- Mutant | -10/Materials Mutant | -10/Mines Mutant | -9/Materials Mutant | -9/Mines Scavenger-Mutant | -9/Exiles Hauler-Mutant | -8/Mines Hauler-Mutant | -8/Materials Hauler-Assassin | -7/Factory Mutant | -7/Lower Caves Mutant | -7/Lower Caves Mutant | -7/Data Miner Resources | -11 -10 -10 -9 -9 -9 -8 -8 -7 -7 -7 -7 ----------- Run | Scr Mat Min Mat Min Exi Min Mat Fac Low Low Dat Matter Collected 2174 | 192 81 46 209 460 . 71 101 384 570 50 10 Remotely . | . . . . . . . . . . . . Salvage Created 2274 | . 185 54 225 35 . 210 170 420 771 181 23 Parts 149 | . 13 3 12 . . 23 15 33 38 8 4 Haulers Intercepted 3 | . 1 . . . . . . 2 . . . Recyclers Shooed 1 | . . . . . . 1 . . . . . Parts Field Recycled . | . . . . . . . . . . . . Retrieved Matter . | . . . . . . . . . . . . Parts Self-Destructed 43 | . . . . . . . . . 34 9 . Prevented . | . . . . . . . . . . . . Kills | -11 -10 -10 -9 -9 -9 -8 -8 -7 -7 -7 -7 ------- Run | Scr Mat Min Mat Min Exi Min Mat Fac Low Low Dat Combat Hostiles Destroyed 59 | . 5 2 9 6 . 8 3 5 17 4 . Melee 9 | . . . . . . . 3 1 2 3 . Guns 37 | . 3 . 6 . . 8 . 4 15 1 . AOE 13 | . 2 2 3 6 . . . . . . . Classes Destroyed 12 | . 3 1 1 2 . 2 . 1 1 1 . Worker 3 | . . . . . . 1 1 1 . . . Builder 1 | . . . . 1 . . . . . . . Tunneler 4 | . . 1 . . . 1 . 2 . . . Hauler 3 | . 1 . . . . . . 2 . . . Swarmer 20 | . 3 . 3 . . 7 . . 5 2 . Grunt 17 | . 2 2 3 . . . . 1 9 . . Duelist 1 | . . . . . . . . . 1 . . Sentry 9 | . . . 3 . . . 3 1 2 . . Hunter 3 | . . . . . . 1 . 1 . 1 . Programmer 3 | . . . . . . . . 2 . 1 . Samaritan 1 | . . . . . . . . . . 1 . Assembled 6 | . . . . 6 . . . . . . . Best Kill Streak 7 | . 3 3 7 2 . 5 2 1 5 1 1 Combat Bots Only 7 | . 3 2 7 2 . 4 1 1 5 1 . Max Kills in Single Turn 2 | . 1 2 2 2 . 2 1 1 2 1 1 Gunslinging 1 | . . . . . . . . . 1 . . Exploded 2 | . 1 2 2 2 . . . . . . . Melee 1 | . . . . . . . 1 1 1 1 . Uniques/NPCs Destroyed 1 | . . . . . . . . . . . 1 Data Miner (-7/Data Miner) Combat | -11 -10 -10 -9 -9 -9 -8 -8 -7 -7 -7 -7 -------- Run | Scr Mat Min Mat Min Exi Min Mat Fac Low Low Dat Damage Taken 6665 | . 309 111 664 235 . 308 88 784 2689 699 778 Core 1145 | . 94 31 162 20 . 138 . 46 258 260 136 Absorbed by Shields . | . . . . . . . . . . . . Core Remaining (%) 67 | 100 . 50 . . . 20 100 . . . . Volleys Fired 170 | . 27 3 35 13 . 20 . 18 50 4 . Largest 2 | . 2 2 2 2 . 2 . 2 2 1 . Hottest 138 | . 90 60 60 60 . 90 . 138 97 81 . Shots Fired 293 | . 53 6 45 14 . 39 . 36 96 4 . Gun 263 | . 51 . 37 . . 39 . 36 96 4 . Cannon . | . . . . . . . . . . . . Launcher 30 | . 2 6 8 14 . . . . . . . Special . | . . . . . . . . . . . . Kinetic 173 | . 20 . 35 . . 12 . 21 85 . . Thermal 57 | . 25 . 2 . . . . 15 11 4 . Explosive 30 | . 2 6 8 14 . . . . . . . Electromagnetic 33 | . 6 . . . . 27 . . . . . Robot Hit Streak 13 | . 6 . 6 5 . 8 . 13 9 2 . Robot Miss Streak 4 | . 4 . 4 2 . 3 . 3 3 2 . Penetration Max . | . . . . . . . . . . . . Secondary Targets 7 | . 1 . 1 . . 1 . . 4 . . Max Gunslinging Chain 1 | . 1 . 1 . . 1 . . 1 . . Shots Hit Robots 238 | . 28 . 22 5 . 30 13 48 79 12 1 Core Hits 137 | . 12 5 21 12 . 17 4 20 40 5 1 Critical Hits 4 | . . . . . . . . . 3 1 . Critical Kills 3 | . . . . . . . . . 2 1 . Critical Parts Destroyed 1 | . . . . . . . . . 1 . . Melee Attacks 97 | . . . . . . . 27 48 6 15 1 Impact . | . . . . . . . . . . . . Slashing 97 | . . . . . . . 27 48 6 15 1 Piercing . | . . . . . . . . . . . . Sneak Attacks 10 | . . . . . . . 1 5 1 2 1 Combat Hostiles . | . . . . . . . . . . . . Follow-up Attacks . | . . . . . . . . . . . . Damage Inflicted 7032 | . 362 174 640 421 . 273 676 1785 1818 747 136 Guns 2817 | . 293 . 194 . . 273 . 511 1449 97 . Cannons . | . . . . . . . . . . . . Explosions 1110 | . 69 174 446 421 . . . . . . . Melee 3105 | . . . . . . . 676 1274 369 650 136 Ramming . | . . . . . . . . . . . . Kinetic 1827 | . 86 . 182 . . 44 . 272 1243 . . Thermal 737 | . 183 . 12 . . . . 239 206 97 . Explosive 1110 | . 69 174 446 421 . . . . . . . Electromagnetic 253 | . 24 . . . . 229 . . . . . Impact . | . . . . . . . . . . . . Slashing 3105 | . . . . . . . 676 1274 369 650 136 Piercing . | . . . . . . . . . . . . Highest Corruption 2 | . 2 2 . . . . 1 1 1 1 1 Average Corruption 1 | . 2 2 . . . . 1 1 1 1 1 Corruption Purged . | . . . . . . . . . . . . Effects 16 | . 2 1 . . . . . 6 5 2 . Message Errors 5 | . 1 . . . . . . 2 1 1 . Energy Discharges 2 | . . 1 . . . . . 1 . . . Data Loss (minor) 4 | . . . . . . . . 2 1 1 . Targeting Errors 5 | . 1 . . . . . . 1 3 . . Overload Shots . | . . . . . . . . . . . . Overflow Damage 673 | . . . 9 43 . . 47 317 94 163 . Projectiles . | . . . . . . . . . . . . Explosions 52 | . . . 9 43 . . . . . . . Melee 621 | . . . . . . . 47 317 94 163 . Knockbacks . | . . . . . . . . . . . . Impact . | . . . . . . . . . . . . Kinetic . | . . . . . . . . . . . . Secondary . | . . . . . . . . . . . . Self-Inflicted Damage 207 | . . 32 5 170 . . . . . . . Shots 9 | . . 1 1 7 . . . . . . . Rammed . | . . . . . . . . . . . . Targets Rammed . | . . . . . . . . . . . . Kicked . | . . . . . . . . . . . . Crushed . | . . . . . . . . . . . . Highest Temperature 462 | . 165 18 25 . . 84 . 462 307 52 . Average Temperature 107 | . 57 14 6 . . 37 . 187 136 32 . Received Heat Transfer 1604 | . 126 45 195 20 . . 27 189 900 . 102 Effects 9 | . . . . . . . . 6 3 . . Shutdowns 1 | . . . . . . . . 1 . . . Energy Bleed 1 | . . . . . . . . 1 . . . Interference 5 | . . . . . . . . 3 2 . . Matter Decay 2 | . . . . . . . . 1 1 . . Siege Activations . | . . . . . . . . . . . . Robots Corrupted . | . . . . . . . . . . . . Combat Hostiles . | . . . . . . . . . . . . Parts Fried 2 | . . . . 2 . . . . . . . Impact Corruptions . | . . . . . . . . . . . . Robots Melted . | . . . . . . . . . . . . Combat Hostiles . | . . . . . . . . . . . . Parts Melted . | . . . . . . . . . . . . Heat Transferred 1519 | . 495 . 25 . . . . 481 370 148 . Parts Sabotaged . | . . . . . . . . . . . . Parts Stolen . | . . . . . . . . . . . . Parts Stripped . | . . . . . . . . . . . . Power Chain Reactions . | . . . . . . . . . . . . Missiles Intercepted . | . . . . . . . . . . . . Alert | -11 -10 -10 -9 -9 -9 -8 -8 -7 -7 -7 -7 ------- Run | Scr Mat Min Mat Min Exi Min Mat Fac Low Low Dat Peak Influence 278 | . 127 64 278 123 . 175 169 94 . . . Average Influence 46 | . 24 53 134 76 . 56 58 22 . . . Maximum Alert Level 1 | . . . 1 . . . . . . . . Low Security (%) 96 | 100 100 100 61 100 . 100 100 100 . . . Level 1 3 | . . . 38 . . . . . . . . Level 2 . | . . . . . . . . . . . . Level 3 . | . . . . . . . . . . . . Level 4 . | . . . . . . . . . . . . Level 5 . | . . . . . . . . . . . . High Security . | . . . . . . . . . . . . Max Security . | . . . . . . . . . . . . Squads Dispatched 5 | . . . 1 1 . . 1 2 . . . Investigation 1 | . . . . . . . 1 . . . . Extermination 2 | . . . . . . . . 2 . . . Reinforcement 2 | . . . 1 1 . . . . . . . Assault . | . . . . . . . . . . . . Garrison . | . . . . . . . . . . . . Intercept . | . . . . . . . . . . . . Construction Impeded 1 | . . . . 1 . . . . . . . Haulers Reinforced . | . . . . . . . . . . . . Stealth | -11 -10 -10 -9 -9 -9 -8 -8 -7 -7 -7 -7 --------- Run | Scr Mat Min Mat Min Exi Min Mat Fac Low Low Dat Distress Signals . | . . . . . . . . . . . . Communications Jammed . | . . . . . . . . . . . . Distress Signals . | . . . . . . . . . . . . Times Spotted 85 | . 10 2 12 10 . 8 6 10 17 6 4 Peak Tracking Total 7 | . 3 2 5 4 . 4 3 3 7 3 4 Tactical Retreats 9 | . . . . 5 . . . 4 . . . Traps | -11 -10 -10 -9 -9 -9 -8 -8 -7 -7 -7 -7 ------- Run | Scr Mat Min Mat Min Exi Min Mat Fac Low Low Dat Traps Triggered 4 | . 2 . . . . . . 2 . . . Indirectly . | . . . . . . . . . . . . Trap Hack Attempts . | . . . . . . . . . . . . Triggered . | . . . . . . . . . . . . Disarmed . | . . . . . . . . . . . . Reprogrammed . | . . . . . . . . . . . . Reused . | . . . . . . . . . . . . Traps Extracted . | . . . . . . . . . . . . Installed . | . . . . . . . . . . . . Triggered 1 | . . . . . . . . . 1 . . Machines | -11 -10 -10 -9 -9 -9 -8 -8 -7 -7 -7 -7 ---------- Run | Scr Mat Min Mat Min Exi Min Mat Fac Low Low Dat Machines Disabled 5 | . 1 . 2 . . . . . 2 . . Max in Single Turn 1 | . 1 . 1 . . . . . 1 . . Machines Sabotaged . | . . . . . . . . . . . . Garrisons Compromised . | . . . . . . . . . . . . Overloaded Fab Kills . | . . . . . . . . . . . . Fab Network Shutdowns . | . . . . . . . . . . . . Hacking | -11 -10 -10 -9 -9 -9 -8 -8 -7 -7 -7 -7 --------- Run | Scr Mat Min Mat Min Exi Min Mat Fac Low Low Dat Machines Accessed 15 | . 4 . 2 . 2 . 1 5 1 . . Terminals 11 | . 4 . 2 . . . . 4 1 . . Fabricators . | . . . . . . . . . . . . Repair Stations . | . . . . . . . . . . . . Recycling Units 1 | . . . . . . . . 1 . . . Scanalyzers 1 | . . . . . . . 1 . . . . Garrison Access . | . . . . . . . . . . . . Total Hacks 48 | . 16 . 8 . 5 . 5 9 5 . . Successful 29 | . 4 . 5 . 5 . 5 5 5 . . Failed 19 | . 12 . 3 . . . . 4 . . . Catastrophic 2 | . 1 . . . . . . 1 . . . Database Lockouts . | . . . . . . . . . . . . Manual 36 | . 16 . 8 . 1 3 . 8 . . . Terminals 37 | . 16 . 8 . . . . 8 5 . . Fabricators . | . . . . . . . . . . . . Repair Stations . | . . . . . . . . . . . . Recycling Units 1 | . . . . . . . . 1 . . . Scanalyzers 5 | . . . . . . . 5 . . . . Garrison Access . | . . . . . . . . . . . . Terminal Hacks 18 | . 2 . 3 . 5 . . 3 5 . . Record 9 | . . . . . 4 . . . 5 . . Part Schematic 1 | . . . . . . . . 1 . . . Branch Access Points 2 | . . . 1 . . . . 1 . . . Unreport Threat 1 | . . . . . . . . 1 . . . Zone Layout 4 | . 2 . 2 . . . . . . . . EX-Prototype ID Bank 1 | . . . . . 1 . . . . . . Fabricator Hacks . | . . . . . . . . . . . . Repair Station Hacks . | . . . . . . . . . . . . Recycling Unit Hacks 1 | . . . . . . . . 1 . . . Retrieve Matter 1 | . . . . . . . . 1 . . . Scanalyzer 5 | . . . . . . . 5 . . . . Insert Component 2 | . . . . . . . 2 . . . . Analyze 3 | . . . . . . . 3 . . . . Garrison Access Hacks . | . . . . . . . . . . . . Unauthorized Hacks 5 | . 2 . 2 . . . . 1 . . . Terminals 5 | . 2 . 2 . . . . 1 . . . Botnet 5 | . 2 . 2 . . . . 1 . . . Fabricators . | . . . . . . . . . . . . Repair Stations . | . . . . . . . . . . . . Recycling Units . | . . . . . . . . . . . . Scanalyzers . | . . . . . . . . . . . . Garrison Access . | . . . . . . . . . . . . Data Cores Recovered . | . . . . . . . . . . . . Used . | . . . . . . . . . . . . Hacking Detections 12 | . 4 . 2 . . 1 1 3 1 . . Full Trace Events 1 | . . . . . . . 1 . . . . Feedback Events 1 | . . . . . . . 1 . . . . Corruption 1 | . . . . . . . 1 . . . . Feedback Blocked . | . . . . . . . . . . . . Robot Schematics Acquired . | . . . . . . . . . . . . Robots Built . | . . . . . . . . . . . . Matter . | . . . . . . . . . . . . Time . | . . . . . . . . . . . . Total Robot Build Rating . | . . . . . . . . . . . . Part Schematics Acquired 3 | . . . . . . . 2 1 . . . Parts Built . | . . . . . . . . . . . . Matter . | . . . . . . . . . . . . Time . | . . . . . . . . . . . . Total Part Build Rating . | . . . . . . . . . . . . Parts Repaired . | . . . . . . . . . . . . Time . | . . . . . . . . . . . . Parts Recycled . | . . . . . . . . . . . . Recycled Matter . | . . . . . . . . . . . . Retrieved Matter . | . . . . . . . . . . . . Retrieved Components . | . . . . . . . . . . . . Parts Scanalyzed 2 | . . . . . . . 2 . . . . Part Schematics Acquired 2 | . . . . . . . 2 . . . . Parts Damaged . | . . . . . . . . . . . . Bothacking | -11 -10 -10 -9 -9 -9 -8 -8 -7 -7 -7 -7 ------------ Run | Scr Mat Min Mat Min Exi Min Mat Fac Low Low Dat Used RIF Installer . | . . . . . . . . . . . . Robots Hacked . | . . . . . . . . . . . . Non-combat . | . . . . . . . . . . . . Combat . | . . . . . . . . . . . . Robot Hacks Applied . | . . . . . . . . . . . . Relay Couplers Released . | . . . . . . . . . . . . Robots Rewired . | . . . . . . . . . . . . Allies Hacked . | . . . . . . . . . . . . Hacks Repelled . | . . . . . . . . . . . . Allies | -11 -10 -10 -9 -9 -9 -8 -8 -7 -7 -7 -7 -------- Run | Scr Mat Min Mat Min Exi Min Mat Fac Low Low Dat Total Allies 5 | . . . . 4 . . . . . 1 . Largest Group 4 | . . . . 4 . . . . . 1 . Highest-Rated Group 163 | . . . . 71 . . . . . 163 . Highest-Rated Ally 163 | . . . . 31 . . . . . 163 . Total Orders . | . . . . . . . . . . . . Ally Attacks 16 | . . . . 15 . . . . . 1 . Total Damage 302 | . . . . 240 . . . . . 62 . Kills 3 | . . . . 2 . . . . . 1 . Allies Corrupted . | . . . . . . . . . . . . Allies Melted . | . . . . . . . . . . . . Intel | -11 -10 -10 -9 -9 -9 -8 -8 -7 -7 -7 -7 ------- Run | Scr Mat Min Mat Min Exi Min Mat Fac Low Low Dat Robot Analysis Total 115 | . . . . . . . . . . . 115 Derelict Logs Recovered 2 | . . . . 1 . . . . 1 . . Drone Launches . | . . . . . . . . . . . . Drone Recoveries . | . . . . . . . . . . . . Exploration | -11 -10 -10 -9 -9 -9 -8 -8 -7 -7 -7 -7 ------------- Run | Scr Mat Min Mat Min Exi Min Mat Fac Low Low Dat Turns Passed 6983 | 61 674 133 387 622 272 486 408 1830 1008 952 150 Spaces Moved 4253 | 49 491 96 235 559 248 320 253 1250 438 261 53 Core 7 | 1 . . . . . . . . 6 . . Treads . | . . . . . . . . . . . . Legs 205 | . . . . . . . . . 165 40 . Wheels 3767 | 48 491 96 235 559 248 320 253 1250 267 . . Hover 274 | . . . . . . . . . . 221 53 Flight . | . . . . . . . . . . . . Fastest Speed 50 | 50 100 110 105 105 105 115 103 103 110 240 60 Average Speed 132 | 98 109 118 124 105 106 115 103 106 180 346 262 Slowest Speed 1600 | 100 110 130 130 130 115 115 103 113 1600 360 360 Overloaded Moves . | . . . . . . . . . . . . Propulsion Burnouts . | . . . . . . . . . . . . Robots Hopped . | . . . . . . . . . . . . Cave-ins Triggered . | . . . . . . . . . . . . Exploration Rate (%) 47 | 4 75 33 29 76 61 74 23 33 58 42 67 Regions Visited 11 Branch Regions 7 Pre-discovered Areas 27 | . . . . . 1 . . . . . 26 Known Exits Taken 8 | . . . 1 1 1 1 1 1 1 1 . Unknown Exits Taken 3 | 1 1 1 . . . . . . . . . Scrap Searched 7 | . . 1 . 2 . 1 . . 2 1 . Spaces Dug 50 | . . . . 7 . . 14 29 . . . Terrain Destroyed 199 | . 11 32 32 81 . . 14 29 . . . Melee 43 | . . . . . . . 14 29 . . . Projectile . | . . . . . . . . . . . . AOE 156 | . 11 32 32 81 . . . . . . . Actions | -11 -10 -10 -9 -9 -9 -8 -8 -7 -7 -7 -7 --------- Run | Scr Mat Min Mat Min Exi Min Mat Fac Low Low Dat Total 5226 | 58 576 107 287 576 256 401 385 1669 553 292 66 Wait 488 | . 44 . . . . 51 68 291 27 7 . Move 4242 | 48 490 95 234 558 247 319 252 1249 437 260 53 Hop . | . . . . . . . . . . . . Pick Up 57 | 4 8 4 5 1 3 4 12 8 5 1 2 Fast Attach 33 | 6 1 . 2 1 . . 2 9 8 3 1 Attach 31 | . 3 1 6 1 1 2 1 3 9 1 3 Detach 4 | . . . . . . . 1 1 2 . . Swap 52 | . 3 4 5 2 3 3 4 20 7 1 . Drop 52 | . . . . . 2 2 18 22 2 . 6 Fire 170 | . 27 3 35 13 . 20 . 18 50 4 . Melee 97 | . . . . . . . 27 48 6 15 1 Ram . | . . . . . . . . . . . . Kick . | . . . . . . . . . . . . Crush . | . . . . . . . . . . . . Escape Stasis . | . . . . . . . . . . . . Rewire . | . . . . . . . . . . . . Trap . | . . . . . . . . . . . . Miscellaneous . | . . . . . . . . . . . . Route ------- -11/Scrapyard -10/Materials (discovered 3 exits: *Mat x2 / [*Min]) -10/Mines -9/Materials (discovered 3 exits: *Mat / *Min x2) -9/Mines (discovered 2 exits: *Mat / *Exi) -9/Exiles -8/Mines (discovered 2 exits: *Mat x2) -8/Materials -7/Factory (discovered 4 exits: *Fac / *Sto / *Low x2) -7/Lower Caves -7/Lower Caves (discovered 2 exits: *Dat / *Fac) -7/Data Miner (discovered 1 exit: [*Pro]) History --------- Turn | Location | Event 19 | -11/Scrapyard | Discovered new exit (range 16) 62 | -11/Scrapyard | Entered Materials 266 | -10/Materials | Discovered new exit (range 6) 318 | -10/Materials | Build established: Mutant 498 | -10/Materials | Discovered new exit (range 12) 555 | -10/Materials | Discovered new exit (range 15) 624 | -10/Materials | Lost 3 parts (1p2w) 736 | -10/Materials | Entered Mines 786 | -10/Mines | Found a hidden stash of uninstalled traps 862 | -10/Mines | Discovered new exit (range 7) 869 | -10/Mines | Entered Materials 869 | -9/Materials | Evolved 2 slots: Utility x2 926 | -9/Materials | Identified exit to Mines 980 | -9/Materials | Discovered new exit (range 8) 1127 | -9/Materials | Destroyed 7 combat bots 1163 | -9/Materials | Lost 5 parts (1u4w) 1256 | -9/Materials | Entered Mines 1345 | -9/Mines | Assembled infested the area 1350 | -9/Mines | Assisted by a Guerilla fighting off Assembled 1448 | -9/Mines | Discovered new exit (range 5) 1451 | -9/Mines | Identified exit to Materials 1785 | -9/Mines | Assisted by bots powering up and referring to "LRC-V3" 1811 | -9/Mines | Received a Mining Laser from a helpful Derelict 1874 | -9/Mines | Deemed a non-threat by the Exiles lab entrance 1874 | -9/Mines | Discovered new exit (range 5) 1877 | -9/Mines | Identified exit to Exiles 1878 | -9/Mines | Entered Exiles 1905 | -9/Exiles | Met 8R-AWN 1923 | -9/Exiles | Met EX-HEX 1954 | -9/Exiles | Met EX-BIN 1969 | -9/Exiles | Aligned with FarCom system 1970 | -9/Exiles | Given EX-Vault access code 1995 | -9/Exiles | Opened EX-Vault 1998 | -9/Exiles | Build established: Scavenger-Mutant 2006 | -9/Exiles | Found Longsword +1 2028 | -9/Exiles | Warned to stay clear of 0b10 Research branches 2062 | -9/Exiles | Met EX-DEC 2070 | -9/Exiles | Learned location of Zion (-6) 2135 | -9/Exiles | Discovered new exit (range 12) 2146 | -9/Exiles | Identified exit to Mines 2150 | -9/Exiles | Left Exiles lab with Longsword +1 2150 | -9/Exiles | Entered Mines 2176 | -8/Mines | Core integrity fell below 50% 2398 | -8/Mines | Build established: Hauler-Mutant 2609 | -8/Mines | Discovered exit to Materials (range 15) 2629 | -8/Mines | Discovered exit to Materials (range 5) 2636 | -8/Mines | Entered Materials 2636 | -8/Materials | Evolved 2 slots: Propulsion x1, Utility x1 2989 | -8/Materials | Discovered new exit (range 11) 3043 | -8/Materials | Identified exit to Factory 3044 | -8/Materials | Entered Factory 3044 | -7/Factory | Evolved 2 slots: Utility x2 3045 | -7/Factory | Identified exit to Storage 3805 | -7/Factory | Build established: Hauler-Assassin 4471 | -7/Factory | Identified exit to Lower Caves 4500 | -7/Factory | Discovered new exit (range 4) 4874 | -7/Factory | Entered Lower Caves 4963 | -7/Lower Caves | Lost 3 parts (1p1n1w) 4993 | -7/Lower Caves | Learned location of 1 exit from Factory 5027 | -7/Lower Caves | Attracted the attention of an 0b10 checkpoint 5180 | -7/Lower Caves | Build established: Hauler-Mutant 5338 | -7/Lower Caves | Attracted the attention of an 0b10 base 5431 | -7/Lower Caves | Lost 8 parts (1n3u4w) 5525 | -7/Lower Caves | Learned 8 Research zone layouts 5525 | -7/Lower Caves | Learned Research trap positions 5525 | -7/Lower Caves | Learned Factory garrison access intel 5633 | -7/Lower Caves | Build established: Mutant 5818 | -7/Lower Caves | Discovered new exit (range 18) 5880 | -7/Lower Caves | Identified exit to Lower Caves 5882 | -7/Lower Caves | Entered another Lower Caves area 6008 | -7/Lower Caves | Core integrity fell below 50% 6143 | -7/Lower Caves | P1-3CE showed up to help 6145 | -7/Lower Caves | P1-3CE revealed a hidden path 6146 | -7/Lower Caves | Identified exit to Factory 6625 | -7/Lower Caves | Core integrity fell below 20% 6806 | -7/Lower Caves | Discovered new exit (range 9) 6831 | -7/Lower Caves | Identified exit to Data Miner 6834 | -7/Lower Caves | Entered Data Miner 6834 | -7/Data Miner | Discovered new exit (range 6) 6903 | -7/Data Miner | Met Data Miner 6953 | -7/Data Miner | Destroyed Data Miner 6960 | -7/Data Miner | Interfaced with the Data Conduit 6963 | -7/Data Miner | Found Prototype Hackware 6965 | -7/Data Miner | Found Prototype Hackware 6984 | -7/Data Miner | Destroyed by Enhanced Grunt with Neutron Cannon Last Messages --------------- 06960_ Interfacing with system... Downloaded 115 analysis records. Downloaded 708 prototype IDs. Downloaded central machine database. Downloaded 26 destinations. Downloaded encryption format records. Connection remotely terminated. [Achievement: Unlimited Data] 06963_ Acquired Prototype Hackware. 06969_ Assault Rifle destroyed. 06969_ Imp. Hover Unit destroyed. 06971_ Power Shielding destroyed. 06973_ Imp. Power Shielding destroyed. 06973_ Dropped Hcp. Storage Unit. 06973_ Imp. Cooling System destroyed. 06973_ Lgt. Nuclear Core destroyed. 06974_ Dropped Hcp. Storage Unit. 06978_ Dropped Com. Matter Pod. 06978_ Adv. Sensor Array destroyed. 06979_ Dropped Hcp. Storage Unit. Map ----- +----------------------------------------------------+ | | | | | | | | | | | | | | | | | | | | | | | | | | | ?????????????????????????????????????????????????? | | ?????????????????????????????????????????????????? | | ?????????????????????????????????????????????????? | | ?????????????????????????????????????????????????? | | ?????????????????????????????????????####????????? | | ??????###############?????##?#?#???### #????????? | | ?????"""""""""""""""###### # # #?### #????????? | | ????""""""""" """"""""# # # # ## < ##????????? | | ????""""""""" ######???? | | ????"""""" g gg g #???? | | ???""""""" #???? | | ???""""""% #???? | | ???"""""""* @ ##???? | | ????"""""" """"""""""""""""#####????? | | ????""""""" ! """"###############????????? | | ????"""""" !!! """###??????????????????????? | | ?????""""""" !! "#####????????????????????????? | | ??????###### ## "#????????????????????????????? | | ???????????#"##" "#????????????????????????????? | | ???????????#"### "#????????????????????????????? | | ???????????#"## "#????????????????????????????? | | ???????????#"?# "#????????????????????????????? | | ?????????????? "#????????????????????????????? | | ?????????????### "#????????????????????????????? | | ???????????????# "#????????????????????????????? | | ???????????????# ""????????????????????????????? | | ??????????????? "?????????????????????????????? | | ???????????????X "?????????????????????????????? | | ??????????????? ?????????????????????????????? | | ???????????????? X?????????????????????????????? | | ???????????????? ??????????????????????????????? | | ?????????????????????????????????????????????????? | | ?????????????????????????????????????????????????? | | ?????????????????????????????????????????????????? | | ?????????????????????????????????????????????????? | | ?????????????????????????????????????????????????? | | ?????????????????????????????????????????????????? | +----------------------------------------------------+ Best States ------------- Heat Dissipation 61 Energy Generation 18 Energy Capacity 290 Matter Stores 300 Matter Capacity 300 Sight Range 16 Robot Scan Range 16 Terrain Scan Range 20 Terrain Scan Density 210 Armor Coverage 1200 Power Shielding 66 Propulsion Shielding 33 Utility Shielding 33 Evasion (%) 45 Item Schematics ----------------- Hcp. Storage Unit | -8/Materials | Scanalyzed Adv. Sensor Array | -8/Materials | Scanalyzed Arm. Huge Wheel | -7/Factory | Hacked Robot Schematics ------------------ None Fabricated ------------ Nothing Alien Tech Used ----------------- None Achievements -------------- Unlimited Data Challenges ------------ None Game ------ Seed FactoryWarpShielding Manual? 0 Play Time 00:51:25 Cumulative 84.3 hours Start 2020.08.09 @ 14:12:16 End 2020.08.09 @ 15:02:35 Sessions 1 Manual Loads 0 Difficulty Rogue Special Mode None Game No. 91 Rogue 4 Adventurer 87 Explorer 0 Win Type - Total 3 Types 2/0/0/1/0/0/0 Lore% 44 Gallery% 59 Achievement% 51 Wizard Run 0 Options --------- ASCII 0 Keyboard 1 Movement Numpad Keybinds 0 Fullscreen 1 Font 18/SmallcapsGlow Map View 76x50 Tactical HUD 1 Map Filters NONE Filters NONE Steam 1 RUN: 9da73872-4d10-4dd9-aa76-7d0184347f0f